[Event "Bijnor Open 2024"]
[Site "Bijnor"]
[Date "2024.03.17"]
[Round "1.7"]
[White "Abhineet Sinha"]
[Black "Mahindrakar Indrajeet"]
[Result "*"]
[ECO "B02"]
[WhiteElo "1467"]
[BlackElo "2136"]
[Annotator "NA COMBH RC"]
[PlyCount "66"]
[EventDate "2024.03.17"]
[EventCountry "IND"]
[SourceTitle "playchess.com"]
[Source "ChessBase"]
[SourceQuality "1"]
[TimeControl "5400+30"]

1. e4 {[%emt 0:00:10]} Nf6 {[%emt 0:00:46]} 2. Nc3 {[%emt 0:02:32]} d5 {[%emt 0:00:09]} 3. e5 {[%emt 0:01:24]} Ne4 {[%emt 0:00:13]} 4. Nxe4 {[%emt 0:02:46]} dxe4 {[%emt 0:00:03]} 5. d4 {[%emt 0:00:13]} exd3 {[%emt 0:01:13]} 6. Bxd3 {[%emt 0:00:49]} Nc6 {[%emt 0:01:28]} 7. Bf4 {[%emt 0:01:12]} Qd4 {[%emt 0:01:31] B02: Alekhine's Defence: Chase Variation and lines with early Nc3.} 8. Ne2 {[%emt 0:01:59]} Qc5 {[%emt 0:02:34]} 9. e6 {[%emt 0:09:11]} Bxe6 {[%emt 0:01:20]} 10. Bxc7 {[%emt 0:00:39]} g6 {[%emt 0:07:35]} 11. c3 {[%emt 0:02:01]} Bg7 {[%emt 0:00:43]} 12. Qc2 {[%emt 0:01:14]} O-O {[%emt 0:01:14]} 13. O-O {[%emt 0:01:19]} Rac8 {[%emt 0:03:37]} 14. Bg3 {[%emt 0:00:13]} Nb4 {[%emt 0:01:21]} 15. Qd2 {[%emt 0:03:21]} Nxd3 {[%emt 0:00:57]} 16. Qxd3 {[%emt 0:00:12]} Rfd8 {[%emt 0:04:35]} 17. Qc2 {[%emt 0:00:27]} b5 {[%emt 0:01:11]} 18. a3 {[%emt 0:03:49]} Bf5 {[%emt 0:02:10]} 19. Qb3 {[%emt 0:00:41]} Rd2 {[%emt 0:01:26]} 20. Rfe1 {[%emt 0:02:22]} a5 {[%emt 0:01:21]} 21. a4 {[%emt 0:05:34]} Bd3 {[%emt 0:02:51]} 22. Nf4 {[%emt 0:06:37]} Bc4 {[%emt 0:02:08]} 23. Qa3 {[%emt 0:00:16]} b4 {[%emt 0:00:48]} 24. cxb4 {[%emt 0:02:02]} axb4 {[%emt 0:00:10]} 25. Qe3 {[%emt 0:04:29]} Qxe3 {[%emt 0:01:00]} 26. Rxe3 {[%emt 0:01:01]} e5 {[%emt 0:00:37]} 27. Nh3 {[%emt 0:00:43]} Rxb2 {[%emt 0:05:32]} 28. Bxe5 {[%emt 0:01:47]} Bxe5 {[%emt 0:00:28]} 29. Rxe5 {[%emt 0:00:10]} Ra2 {[%emt 0:00:09]} 30. Rae1 {[%emt 0:08:11]} b3 {[%emt 0:00:54]} 31. Re8+ {[%emt 0:00:14]} Rxe8 {[%emt 0:00:09]} 32. Rxe8+ {[%emt 0:00:08]} Kg7 {[%emt 0:00:03]} 33. f3 {[%emt 0:04:36] Check Result:-7.95} b2 $19 {[%emt 0:00:46]} *

[Event "Bijnor Open 2024"]
[Site "Bijnor"]
[Date "2024.03.17"]
[Round "1.8"]
[White "Balkishan, A.."]
[Black "Darshan Jaiswal"]
[Result "1-0"]
[ECO "A23"]
[WhiteElo "2108"]
[BlackElo "1464"]
[Annotator "NA RC"]
[PlyCount "95"]
[EventDate "2024.03.17"]
[EventCountry "IND"]
[SourceTitle "playchess.com"]
[Source "ChessBase"]
[SourceQuality "1"]
[TimeControl "5400+30"]

1. c4 {[%emt 0:02:04]} e5 {[%emt 0:00:51]} 2. Nc3 {[%emt 0:00:04]} Nf6 {[%emt 0:00:11]} 3. g3 {[%emt 0:00:18]} c6 {[%emt 0:01:27]} 4. d4 {[%emt 0:01:01]} exd4 {[%emt 0:02:16]} 5. Qxd4 {[%emt 0:00:03]} d5 {[%emt 0:00:16]} 6. Bg2 {[%emt 0:00:02]} Bb4 {[%emt 0:00:26] A23: English Opening: 1...e5 2 Nc3 Nf6 3 g3 c6.} 7. cxd5 {[%emt 0:02:13]} Bxc3+ {[%emt 0:00:24]} 8. Qxc3 {[%emt 0:00:19]} cxd5 {[%emt 0:01:21]} 9. Bg5 {[%emt 0:00:14]} Be6 {[%emt 0:06:03]} 10. Bxf6 {[%emt 0:00:14]} Qxf6 {[%emt 0:03:33]} 11. Qxf6 {[%emt 0:00:04]} gxf6 {[%emt 0:00:04]} 12. Rd1 {[%emt 0:01:26]} Ke7 {[%emt 0:00:48]} 13. Bxd5 {[%emt 0:01:45]} Bxd5 {[%emt 0:00:26]} 14. Rxd5 {[%emt 0:00:03]} Nc6 {[%emt 0:00:41]} 15. Nf3 {[%emt 0:00:35]} Rad8 {[%emt 0:02:43]} 16. Rxd8 {[%emt 0:02:02]} Rxd8 {[%emt 0:00:08]} 17. e3 {[%emt 0:00:13]} Ke6 {[%emt 0:03:22]} 18. Ke2 {[%emt 0:00:13]} Kf5 {[%emt 0:03:01]} 19. Rc1 {[%emt 0:00:51]} Rd5 {[%emt 0:10:10]} 20. Rc4 {[%emt 0:00:07]} Rb5 {[%emt 0:02:39]} 21. b3 {[%emt 0:00:16]} Kg6 {[%emt 0:08:04]} 22. Nd4 {[%emt 0:02:42]} Nxd4+ {[%emt 0:08:41]} 23. exd4 {[%emt 0:00:11]} Ra5 {[%emt 0:02:01]} 24. a4 {[%emt 0:00:04]} Ra6 {[%emt 0:00:48]} 25. Kd3 {[%emt 0:00:33]} f5 {[%emt 0:06:33]} 26. Rb4 {[%emt 0:00:15]} Rd6 {[%emt 0:02:09]} 27. Rxb7 {[%emt 0:00:07]} a6 {[%emt 0:00:03]} 28. a5 {[%emt 0:00:18]} f6 {[%emt 0:01:41]} 29. b4 {[%emt 0:00:26]} h6 {[%emt 0:00:43]} 30. Rb6 {[%emt 0:00:10]} Rd8 {[%emt 0:00:39]} 31. Rxa6 {[%emt 0:00:03]} f4 {[%emt 0:01:44]} 32. gxf4 {[%emt 0:00:08]} Kf5 {[%emt 0:00:05]} 33. b5 {[%emt 0:00:08]} Rb8 {[%emt 0:00:21]} 34. Rb6 {[%emt 0:00:06]} Ra8 {[%emt 0:01:02]} 35. a6 {[%emt 1:28:42]} Kxf4 {[%emt 0:00:05]} 36. Rxf6+ {[%emt 0:00:00]} Kg5 {[%emt 0:00:12]} 37. Rf7 {[%emt 0:01:00]} h5 {[%emt 0:00:18]} 38. a7 {[%emt 0:00:00]} Kg4 {[%emt 0:00:18]} 39. b6 {[%emt 0:00:00]} h4 {[%emt 0:00:08]} 40. Rb7 {[%emt 0:00:00]} Kh3 {[%emt 0:00:49]} 41. Rb8 {[%emt 0:00:00]} Rxb8 {[%emt 0:00:03]} 42. axb8=Q {[%emt 0:00:00]} Kg2 {[%emt 0:00:07]} 43. Qg8+ {[%emt 0:00:00]} Kxh2 {[%emt 0:00:09]} 44. b7 {[%emt 0:00:00]} Kh3 {[%emt 0:00:55]} 45. Ke3 {[%emt 0:00:00]} Kh2 {[%emt 0:00:07]} 46. Kf3 {[%emt 0:00:00]} h3 {[%emt 0:00:20]} 47. b8=Q+ {[%emt 0:00:00]} Kh1 {[%emt 0:00:18]} 48. Qb1+ {[%emt 0:00:00]} 1-0

[Event "Bijnor Open 2024"]
[Site "Bijnor"]
[Date "2024.03.17"]
[Round "1.9"]
[White "Viaan Jai Singh"]
[Black "Dutta, Joydeep"]
[Result "0-1"]
[ECO "B01"]
[WhiteElo "1464"]
[BlackElo "2041"]
[Annotator "NA RC"]
[PlyCount "88"]
[EventDate "2024.03.17"]
[EventCountry "IND"]
[SourceTitle "playchess.com"]
[Source "ChessBase"]
[SourceQuality "1"]
[TimeControl "5400+30"]

1. e4 {[%emt 0:00:03]} d5 {[%emt 0:00:20]} 2. exd5 {[%emt 0:00:10]} Qd7 {[%emt 1:31:10]} 3. d6 Qxd6 {[%emt 0:00:00]} 4. Nf3 {[%emt 0:00:43]} Qd5 {[%emt 0:00:00]} 5. d4 {[%emt 0:00:46]} Nf6 {[%emt 0:00:00]} 6. c3 {[%emt 1:31:48]} c6 7. c4 {[%emt 0:00:00]} Qd8 {[%emt 0:00:00]} 8. Nc3 {[%emt 0:00:00] B01: Skandinavische Verteidigung.} Bg4 {[%emt 0:00:00]} 9. Be2 {[%emt 0:00:00]} e6 {[%emt 0:00:00]} 10. Bf4 {[%emt 0:00:00]} Nbd7 {[%emt 0:00:00]} 11. O-O {[%emt 0:00:00]} Be7 {[%emt 0:00:00]} 12. Qb3 {[%emt 0:00:00]} Qb6 {[%emt 0:00:00]} 13. c5 {[%emt 0:00:00]} Qxb3 {[%emt 0:00:00]} 14. axb3 {[%emt 0:00:00]} O-O {[%emt 0:00:00]} 15. b4 {[%emt 0:00:00]} a6 {[%emt 0:00:00]} 16. h3 {[%emt 0:00:00]} Bh5 {[%emt 0:00:00]} 17. g4 {[%emt 0:00:00]} Bg6 {[%emt 0:00:00]} 18. Nd2 {[%emt 0:00:00]} Nd5 {[%emt 0:00:00]} 19. Nxd5 {[%emt 0:00:00]} exd5 {[%emt 0:00:00]} 20. Rfe1 {[%emt 0:00:00]} Rfe8 {[%emt 0:00:00]} 21. Bf1 {[%emt 0:00:00]} Nf8 {[%emt 0:00:00]} 22. Nf3 {[%emt 0:00:00]} Ne6 {[%emt 0:00:00]} 23. Be3 {[%emt 0:00:00]} Be4 {[%emt 0:00:00]} 24. Bg2 {[%emt 0:00:00]} Bf6 {[%emt 0:00:00]} (24... f5 $17 25. gxf5 Bxf5) 25. Rad1 {[%emt 0:00:00]} Bxf3 {[%emt 0:00:00]} 26. Bxf3 {[%emt 0:00:00]} Nxd4 {[%emt 0:00:00]} 27. Bxd4 {[%emt 0:00:00]} Rxe1+ {[%emt 0:00:00]} 28. Rxe1 {[%emt 0:00:00]} Bxd4 {[%emt 0:00:00]} 29. Re7 {[%emt 0:00:00]} Rb8 {[%emt 0:00:00]} 30. Re2 {[%emt 0:00:00]} Kf8 {[%emt 0:00:00]} 31. Kf1 {[%emt 0:00:00]} b6 {[%emt 0:00:00]} 32. Rd2 {[%emt 0:00:00]} bxc5 {[%emt 0:00:00]} 33. bxc5 {[%emt 0:00:00]} Bxb2 {[%emt 0:00:00]} 34. Bd1 {[%emt 0:00:00]} Bc3 {[%emt 0:00:00]} 35. Ra2 {[%emt 0:00:00]} a5 {[%emt 0:00:00]} 36. Ba4 {[%emt 0:00:00]} Rc8 {[%emt 0:00:00]} 37. Rc2 {[%emt 0:00:00]} Bb4 {[%emt 0:00:00]} 38. Ke2 {[%emt 0:00:00]} Ke7 {[%emt 0:00:00]} 39. Kd3 {[%emt 0:00:00]} Kd7 {[%emt 0:00:00]} 40. Kd4 {[%emt 0:00:00]} Re8 {[%emt 0:00:00]} 41. f3 {[%emt 0:00:00]} Re1 {[%emt 0:00:00]} 42. Rf2 {[%emt 0:00:00]} Ra1 {[%emt 0:00:00]} 43. Bb3 {[%emt 0:00:00]} Ra3 {[%emt 0:00:00]} 44. Rb2 {[%emt 0:00:00]} a4 $19 {[%emt 0:00:00]} 0-1

[Event "Bijnor Open 2024"]
[Site "Bijnor"]
[Date "2024.03.17"]
[Round "1.10"]
[White "Singh, Arvinder Preet"]
[Black "Santosh Ram Narayanan"]
[Result "1-0"]
[ECO "C60"]
[WhiteElo "2030"]
[BlackElo "1498"]
[Annotator "NA RC"]
[PlyCount "55"]
[EventDate "2024.03.17"]
[EventCountry "IND"]
[SourceTitle "playchess.com"]
[Source "ChessBase"]
[SourceQuality "1"]
[TimeControl "5400+30"]

1. e4 {[%emt 0:00:04]} e5 {[%emt 0:00:30]} 2. Nf3 {[%emt 0:00:09]} Nc6 {[%emt 0:00:05]} 3. Bb5 {[%emt 0:00:04]} Nge7 {[%emt 0:01:17]} 4. O-O {[%emt 0:00:17]} d6 {[%emt 0:00:07]} 5. c3 {[%emt 0:00:36]} Bd7 {[%emt 0:00:10]} 6. d4 {[%emt 0:00:18]} a6 {[%emt 0:00:30]} 7. Bc4 {[%emt 0:00:36]} b5 {[%emt 0:01:10]} 8. Bb3 {[%emt 0:01:15]} Na5 {[%emt 0:00:16]} 9. dxe5 {[%emt 0:00:50]} Nxb3 {[%emt 0:00:21]} 10. axb3 {[%emt 0:00:19]} dxe5 {[%emt 0:00:11]} 11. Nxe5 {[%emt 0:00:09]} Ng6 {[%emt 0:00:31]} 12. Qd5 {[%emt 0:03:29]} Nxe5 {[%emt 0:00:20]} 13. Qxe5+ {[%emt 0:00:11]} Be6 {[%emt 0:01:10]} 14. Rxa6 {[%emt 0:01:07]} Rb8 {[%emt 0:01:08]} 15. Bf4 {[%emt 0:02:41]} Be7 {[%emt 0:01:30]} 16. Qxg7 {[%emt 0:07:21]} Rf8 {[%emt 0:00:23]} 17. Nd2 {[%emt 0:10:36]} Kd7 {[%emt 0:01:25]} 18. Qd4+ {[%emt 0:02:57]} Kc8 {[%emt 0:00:21]} 19. Qa7 {[%emt 0:01:25]} Rb7 {[%emt 0:01:53]} 20. Qe3 {[%emt 0:03:47]} Rg8 {[%emt 0:00:29]} 21. Ra8+ {[%emt 0:01:36]} Rb8 {[%emt 0:00:13]} 22. Rxb8+ {[%emt 0:00:19]} Kxb8 {[%emt 0:00:06]} 23. Ra1 {[%emt 0:00:08]} Bd6 {[%emt 0:01:09]} 24. Qa7+ {[%emt 0:01:48]} Kc8 {[%emt 0:00:07]} 25. Bxd6 {[%emt 0:01:43]} cxd6 {[%emt 1:27:38]} 26. Ra6 {[%emt 0:01:40]} Qg5 {[%emt 0:00:00]} 27. Qa8+ {[%emt 0:01:12]} Kd7 {[%emt 0:00:00]} 28. Ra7# {[%emt 0:00:05]} 1-0

[Event "Bijnor Open 2024"]
[Site "Bijnor"]
[Date "2024.03.17"]
[Round "2.1"]
[White "Srihari L R"]
[Black "Ahaan Alsisaria"]
[Result "1-0"]
[ECO "A85"]
[WhiteElo "2490"]
[BlackElo "1615"]
[Annotator "TA"]
[PlyCount "73"]
[EventDate "2024.03.17"]
[EventCountry "IND"]
[SourceTitle "playchess.com"]
[Source "ChessBase"]
[SourceQuality "1"]
[TimeControl "5400+30"]

{[%evp 17,73,28,34,24,24,23,29,24,45,27,40,17,12,14,75,73,81,81,74,63,127,138,141,144,218,216,332,331,344,333,746,772,752,736,717,630,609,356,355,355,494,446,496,485,541,0,431,114,919,914,2388,2388,1918,1730,2010,1957,1430,587]} 1. Nf3 {[%emt 0:00:26]} d5 {[%emt 0:00:42]} 2. c4 {[%emt 0:00:35]} e6 {[%emt 0:02:28]} 3. e3 {[%emt 0:02:22]} c6 {[%emt 0:05:16]} 4. Nc3 {[%emt 0:00:52]} f5 {[%emt 0:05:19]} 5. b3 {[%emt 0:03:12]} Nf6 {[%emt 0:02:03]} 6. Bb2 {[%emt 0:00:09]} Bd6 {[%emt 0:02:37]} 7. d4 {[%emt 0:06:18]} O-O {[%emt 0:04:52]} 8. Bd3 {[%emt 0:00:14]} Ne4 {[%emt 0:03:04]} 9. O-O {[%emt 0:00:13]} Nd7 {[%emt 0:02:19]} 10. Ne2 {[%emt 0:00:25]} Rf6 {[%emt 0:02:53]} 11. Ne5 {[%emt 0:09:05]} Rh6 {[%emt 0:04:48]} 12. g3 {[%emt 0:09:57] White has an edge.} Qe8 {[%emt 0:03:04]} 13. h4 {[%emt 0:03:12]} Be7 {[%emt 0:08:25]} 14. Kg2 {[%emt 0:04:24]} Nxe5 {[%emt 0:05:50]} 15. dxe5 {[%emt 0:00:11]} Rg6 {[%emt 0:00:12]} (15... dxc4 $11 {keeps the balance.} 16. bxc4 b6) 16. Nf4 {[%emt 0:02:27]} Rh6 {[%emt 0:00:53]} 17. Rh1 {[%emt 0:04:32]} b6 {[%emt 0:07:03]} 18. Rc1 {[%emt 0:02:35]} Bb7 {[%emt 0:00:38]} (18... Nc5 $14) 19. cxd5 $16 {[%emt 0:00:37]} cxd5 {[%emt 0:02:03]} 20. Bxe4 $1 {[%emt 0:03:07]} fxe4 {[%emt 0:00:51]} (20... dxe4 $16 21. Rc7 Bc8) 21. Rc7 $18 {[%emt 0:00:14]} Bc6 {[%emt 0:01:00] [#]} (21... Bd8 $142) 22. Qg4 $1 {[%emt 0:01:55]} Bd7 {[%emt 0:07:32]} 23. Nxd5 {[%emt 0:03:05]} Bd8 {[%emt 0:00:33]} (23... exd5 24. Rxd7 (24. Qxd7 Qxd7 25. Rxd7 Re6 $18) 24... Qf7) 24. Nf6+ {[%emt 0:00:09]} Bxf6 {[%emt 0:00:23]} 25. exf6 {[%emt 0:00:10]} Rg6 {[%emt 0:00:13] Black is weak on the dark squares} 26. Qd1 {[%emt 0:00:49]} Rd8 {[%emt 0:00:27]} 27. fxg7 {[%emt 0:09:36]} e5 {[%emt 0:01:09][%cal Od7h3]} 28. Qd5+ {[%emt 0:00:11]} (28. Rxa7 Bg4 (28... Bh3+ 29. Kxh3 Rxd1 30. Rxd1 $18) 29. Qe1 Qe6 $11 (29... Rxg7 $2 30. Rxg7+ Kxg7 31. Rg1 $18) (29... Rd1 30. Qxd1 Bf3+ 31. Kh2 $18)) 28... Be6 {[%emt 0:00:14]} 29. Qxe5 {[%emt 0:00:58][%cal Oh4h5] Hoping for h5!} Rd5 {[%emt 0:00:12]} 30. Qc3 {[%emt 0:02:10]} (30. Qxe4 Bh3+ 31. Kxh3 Qxe4 32. Rc8+ Kf7 $17) 30... Qd8 {[%emt 0:00:32][%cal Og6g3] [#]} 31. Qb4 $2 {[%emt 0:06:51]} Rd2 $2 {[%emt 0:01:42][%mdl 8192]} (31... Rxg3+ $11 {and Black has nothing to worry.} 32. Kxg3 (32. fxg3 Rd2+ 33. Kg1 Rd1+ 34. Kf2 Rd2+ 35. Kg1 Rd1+ 36. Kf2 Rd2+ 37. Kg1 $11) 32... Rg5+ 33. hxg5 Qxg5+ 34. Kh2 Qh5+ 35. Kg1 Qd1+ 36. Qe1 (36. Kh2 Qh5+ 37. Kg1 Qd1+ 38. Kh2 Qh5+ $11) 36... Qxe1+ 37. Kg2 Qe2) 32. Bd4 $2 {[%emt 0:01:40]} (32. Rxa7 Rxb2 $11) (32. Be5 $18) 32... Bg4 $2 {[%emt 0:04:00][%mdl 8192] This move loses the game for Black.} (32... Rxg3+ $16 33. Kxg3 Qxc7+ 34. Kg2 Rxf2+ 35. Kxf2 Qc2+ 36. Kf1 Qd1+ 37. Qe1 Qf3+ 38. Qf2 (38. Kg1 Qg4+ 39. Kf1 Qf3+ 40. Qf2 Qxh1+ 41. Ke2 Bg4+ 42. Kd2 Qf3 $18) 38... Qxh1+ 39. Ke2 Bg4+ 40. Kd2 Qd1+ 41. Kc3 Qc1+ 42. Qc2 Qxc2+ 43. Kxc2 b5) 33. Rhc1 {[%emt 0:03:59] White is clearly winning.} (33. Rxa7 Bf3+ 34. Kf1 Rd1+) 33... Rd3 {[%emt 0:01:08]} 34. Qc4+ {[%emt 0:00:42]} Be6 {[%emt 0:00:05] [#]} 35. Rc8 $1 {[%emt 0:00:07]} Qxc8 {[%emt 0:00:08]} (35... Rxd4 36. Qxd4) 36. Qxc8+ {[%emt 0:00:04]} Bxc8 {[%emt 0:00:06]} 37. Rxc8+ {[%emt 0:00:09] Weighted Error Value: White=0.73/Black=0.63.  Loses game:     	---       	Black=2      Missed win:     	White=2     	---        Mistake:       	---       	Black=5      Inaccurate:     	---       	Black=2      OK:         	White=5     	Black=5      Best:        	White=4     	Black=1      Strong:       	White=2     	---} 1-0

[Event "Bijnor Open 2024"]
[Site "Bijnor"]
[Date "2024.03.17"]
[Round "2.2"]
[White "Hriday Garg"]
[Black "Neelash Saha"]
[Result "0-1"]
[ECO "C18"]
[WhiteElo "1614"]
[BlackElo "2463"]
[Annotator "TA"]
[PlyCount "100"]
[EventDate "2024.03.17"]
[EventCountry "IND"]
[SourceTitle "playchess.com"]
[Source "ChessBase"]
[SourceQuality "1"]
[TimeControl "5400+30"]

{[%evp 11,99,0,16,-38,-43,-54,-61,-58,-61,-60,-51,-50,-52,-61,-65,-54,-50,-85,-65,-109,-97,-101,-97,-96,-78,-86,-72,-91,-92,-143,-147,-268,-270,-269,-265,-445,-445,-505,-427,-724,-714,-745,-721,-758,-590,-795,-789,-802,-780,-837,-743,-852,-846,-840,-806,-1385,-1129,-1702,-1300,-1287,-1189,-1652,-1524,-6411,-2397,-6813,-6141,-29986,-29987,-29988,-29984,-29991,-29991,-29991,-29992,-29992,-29993,-29996,-29997,-29997,-29993,-29993,-29994,-29994,-29995,-29995,-29995,-29998,-29999,-29999]} 1. e4 {[%emt 0:00:14]} e6 {[%emt 0:00:51]} 2. d4 {[%emt 0:00:09]} d5 {[%emt 0:00:04]} 3. Nc3 {[%emt 0:00:10]} Bb4 {[%emt 0:00:17]} 4. e5 {[%emt 0:00:07]} c5 {[%emt 0:00:06]} 5. a3 {[%emt 0:00:04]} Bxc3+ {[%emt 0:00:03]} 6. bxc3 {[%emt 0:00:07]} Qa5 {[%emt 0:00:02]} 7. Qd3 {[%emt 0:00:35]} (7. Bd2 $11) 7... cxd4 $15 {[%emt 0:01:23]} 8. Qb5+ {[%emt 0:00:24]} Qxb5 $1 {[%emt 0:00:46]} 9. Bxb5+ {[%emt 0:00:22] Black is slightly better.} Bd7 {[%emt 0:00:03]} 10. Bxd7+ {[%emt 0:00:11]} Nxd7 {[%emt 0:02:00]} 11. cxd4 {[%emt 0:00:17]} Rc8 {[%emt 0:00:06]} 12. Kd1 {[%emt 0:01:31]} Nb6 {[%emt 0:00:07]} 13. Ne2 {[%emt 0:01:00]} Ne7 {[%emt 0:01:02]} 14. Be3 {[%emt 0:01:56]} Kd7 {[%emt 0:00:50]} 15. Nf4 {[%emt 0:01:37]} Rc4 {[%emt 0:02:03]} 16. Kd2 {[%emt 0:02:55]} Rhc8 {[%emt 0:00:44]} 17. Rhc1 {[%emt 0:00:34]} Ra4 {[%emt 0:00:17]} 18. Rcb1 {[%emt 0:01:47]} Rc7 {[%emt 0:01:02] Black is more active.} (18... Nc4+ {is interesting.} 19. Kd3 b6 20. Bc1 Nc6) 19. Rb3 {[%emt 0:01:12]} Nc6 {[%emt 0:00:49]} 20. c3 {[%emt 0:00:37]} (20. Kd3 $142) 20... Na5 $36 {[%emt 0:00:07][%mdl 2048] Black has strong initiative.} 21. Kc2 {[%emt 0:02:48]} (21. Rbb1 $17) 21... Nxb3 $19 {[%emt 0:00:46]} 22. Kxb3 {[%emt 0:00:07]} Ra5 {[%emt 0:00:05]} 23. a4 $2 {[%emt 0:00:44]} (23. Nd3) 23... Rc4 {[%emt 0:00:09][%cal Rb6a4]} 24. Nd3 {[%emt 0:00:27]} Rcxa4 {[%emt 0:00:59]} 25. Nc5+ {[%emt 0:00:24] [#]} (25. Rxa4 $142 Nxa4 26. Kb4) 25... Rxc5 $1 {[%emt 0:00:05]} 26. Rxa4 {[%emt 0:00:08] [#]} Rxc3+ $3 {[%emt 0:00:04][%mdl 512]} 27. Kxc3 {[%emt 0:00:09]} Nxa4+ {[%emt 0:00:02][%mdl 4096] Endgame. KB-KN} 28. Kb3 {[%emt 0:01:01]} Nb6 {[%emt 0:00:05]} 29. Bd2 {[%emt 0:00:19]} Nc4 {[%emt 0:00:04]} 30. Bb4 {[%emt 0:00:07]} a5 {[%emt 0:00:04]} 31. Bf8 {[%emt 0:00:08]} g6 {[%emt 0:00:07]} 32. h4 {[%emt 0:00:10]} b5 {[%emt 0:00:11]} 33. Bh6 {[%emt 0:00:14]} Kc6 {[%emt 0:00:05]} 34. g4 {[%emt 0:00:12]} b4 {[%emt 0:00:12] White must now prevent ...Kb5.} 35. Ka4 {[%emt 0:00:48]} Nb6+ {[%emt 0:00:22]} 36. Kb3 {[%emt 0:00:08]} Kb5 {[%emt 0:00:03] ...a4+ would now be deadly.} 37. f4 {[%emt 0:00:50]} a4+ {[%emt 0:00:05]} 38. Kc2 {[%emt 0:00:07]} Kc4 {[%emt 0:00:02][%cal Oa4a3] ( -> ...a3!)} 39. Bf8 {[%emt 0:00:12]} a3 {[%emt 0:00:06] Black mates.} 40. h5 {[%emt 0:00:17]} gxh5 {[%emt 0:00:24]} 41. gxh5 {[%emt 0:00:06]} Na4 {[%emt 0:00:09]} 42. Kb1 {[%emt 0:00:24]} Kb3 {[%emt 0:00:35]} 43. Ka1 {[%emt 0:00:22]} Nb2 {[%emt 0:00:27]} 44. h6 {[%emt 0:00:34]} Nc4 {[%emt 0:00:18]} 45. Bd6 {[%emt 0:00:19]} Ne3 {[%emt 0:00:14]} 46. Kb1 {[%emt 0:00:29]} a2+ {[%emt 0:00:12]} 47. Kc1 {[%emt 0:00:08]} a1=Q+ {[%emt 0:00:39]} 48. Kd2 {[%emt 0:00:04]} Nc2 {[%emt 0:00:05]} 49. f5 {[%emt 0:00:06]} Qe1+ {[%emt 0:00:05]} 50. Kd3 {[%emt 0:00:05]} Qe3# {[%emt 0:00:03] Weighted Error Value: White=0.76/Black=0.11 (very precise) .  Mistake:       	White=4     	---        Inaccurate:     	White=2     	---        OK:         	White=4     	Black=7      Best:        	---       	Black=2      Strong:       	---       	Black=1      Brilliant:      	---       	Black=1} 0-1